bitfinex/quotes_BTCUSD_20241222
["timestamp","ask_amount","ask_price","bid_price","bid_amount"]
[1734847746403,0.00024901,96365.0,96364.0,1.03356195]
[1734847746984,0.00024901,96365.0,96364.0,1.03156195]
[1734847747340,0.00024901,96365.0,96364.0,1.03256195]
[1734847747787,0.00024901,96365.0,96364.0,1.00956195]
[1734847748010,0.00024901,96365.0,96364.0,0.85956195]
[1734847748568,0.00024901,96365.0,96364.0,0.85856195]
[1734847748970,0.00024901,96365.0,96364.0,0.86256195]
[1734847749349,0.00024901,96365.0,96364.0,0.85956195]
[1734847749548,0.00024901,96365.0,96364.0,0.86556195]
[1734847749747,0.00024901,96365.0,96364.0,0.85956195]
[1734847750179,0.00024901,96365.0,96364.0,0.32923375]
[1734847750393,0.00024901,96365.0,96364.0,0.32523375]
[1734847750766,0.00024901,96365.0,96364.0,0.32723375]
[1734847751152,0.00024901,96365.0,96364.0,0.32523375]
[1734847751724,0.00024901,96365.0,96364.0,0.32123375]
[1734847752062,0.00024901,96365.0,96364.0,0.32523375]
[1734847752275,0.00024901,96365.0,96364.0,0.31923375]
[1734847753284,0.00024901,96365.0,96364.0,0.32523375]
[1734847753703,0.00024901,96365.0,96364.0,0.31923375]
[1734847754156,0.00024901,96365.0,96364.0,0.32123375]
[1734847754576,0.00024901,96365.0,96364.0,0.31923375]
[1734847754785,0.0468,96363.0,96350.0,0.0001712]
[1734847754984,0.20884738,96362.0,96351.0,0.1013084]
[1734847755192,0.207555,96360.0,96351.0,0.1013084]
[1734847755400,0.07649736,96359.0,96351.0,0.1013084]
[1734847755818,0.0752,96359.0,96351.0,0.1013084]
[1734847756021,0.00024901,96365.0,96351.0,0.1013084]
[1734847756022,0.07544901,96365.0,96358.0,0.207559]
[1734847756223,0.07544901,96365.0,96359.0,0.1013084]
[1734847756428,0.07544901,96365.0,96362.0,0.20755]
[1734847756629,0.07544901,96365.0,96364.0,0.207546]
[1734847756830,0.07544901,96365.0,96364.0,0.3088544]
[1734847758693,0.07544901,96365.0,96364.0,0.3098544]
[1734847759338,0.07544901,96365.0,96364.0,0.1023084]
[1734847759692,0.07544901,96365.0,96364.0,0.004]
[1734847759898,0.07674625,96365.0,96364.0,0.004]
[1734847760122,0.14355605,96365.0,96364.0,0.004]
[1734847760318,0.14355605,96365.0,96364.0,0.003]
[1734847760521,0.35110005,96365.0,96364.0,0.003]
[1734847760721,0.35110005,96365.0,96364.0,0.001]
[1734847760722,0.34980281,96365.0,96364.0,0.001]
[1734847761152,0.27460281,96365.0,96345.0,0.207585]
[1734847761389,0.0752,96356.0,96345.0,0.207585]
[1734847761516,0.00129743,96355.0,96345.0,0.207585]
[1734847761734,0.02070723,96355.0,96345.0,0.207586]
[1734847761950,0.0194098,96354.0,96345.0,0.207586]
[1734847762155,0.00129743,96353.0,96345.0,0.207586]
[1734847762554,0.0194098,96352.0,96345.0,0.207586]
[1734847762920,0.00129743,96351.0,96350.0,0.0021712]
[1734847763127,0.02070723,96351.0,96350.0,0.0001712]
[1734847763551,0.02070723,96351.0,96350.0,0.0031712]
[1734847763739,0.00129743,96351.0,96350.0,0.0001712]
[1734847764039,0.00129743,96354.0,96350.0,0.0041712]
[1734847764526,0.0194098,96353.0,96350.0,0.0031712]
[1734847764724,0.00129743,96352.0,96350.0,0.0031712]
[1734847765154,0.00129743,96352.0,96350.0,0.2117462]
[1734847765285,0.00129743,96352.0,96350.0,0.0041712]
[1734847765505,0.00129743,96352.0,96350.0,0.0011712]
[1734847765702,0.00129743,96351.0,96350.0,0.0021712]
[1734847765902,0.00129743,96355.0,96350.0,0.0021712]
[1734847766108,0.00129743,96355.0,96350.0,0.0011712]
[1734847766856,0.00129743,96355.0,96350.0,0.0031712]
[1734847767232,0.00129743,96355.0,96350.0,0.0001712]
[1734847768510,0.00129743,96355.0,96351.0,0.207574]
[1734847768921,0.00129743,96355.0,96352.0,0.1013084]
[1734847769129,0.01937814,96359.0,96353.0,0.207569]
[1734847769327,0.01937814,96359.0,96353.0,0.3088774]
[1734847769543,0.01937814,96361.0,96353.0,0.3088774]
[1734847769744,0.00129735,96360.0,96353.0,0.3088774]
[1734847770143,0.01937814,96360.0,96354.0,0.1013084]
[1734847770350,0.0012973,96359.0,96354.0,0.1013084]
[1734847770545,0.0012973,96359.0,96355.0,0.207564]
[1734847770763,0.0012973,96359.0,96357.0,0.207561]
[1734847770962,0.0012973,96359.0,96358.0,0.1013084]
[1734847771165,0.0752,96363.0,96359.0,0.207557]
[1734847771568,0.0752,96363.0,96361.0,0.207552]
[1734847771778,0.07649724,96363.0,96362.0,0.1013084]
[1734847771977,0.0752,96363.0,96362.0,0.1013084]
[1734847772599,0.00129722,96364.0,96362.0,0.1013084]
[1734847772820,0.00129722,96364.0,96363.0,0.207548]
[1734847773118,0.00154623,96365.0,96363.0,0.207548]
[1734847775326,0.00154623,96365.0,96362.0,0.1013084]
[1734847776565,0.00154623,96365.0,96363.0,0.207548]
[1734847776694,0.02092437,96365.0,96363.0,0.207548]
[1734847777361,0.01937814,96364.0,96363.0,0.207548]
[1734847778402,0.01937814,96364.0,96363.0,0.3088564]
[1734847778616,0.01962715,96365.0,96363.0,0.3088564]
[1734847778744,0.01962715,96365.0,96364.0,0.1013084]
[1734847778950,0.00024901,96365.0,96364.0,0.1013084]
[1734847781306,0.00024901,96365.0,96364.0,0.1831084]
[1734847782111,0.00024901,96365.0,96364.0,0.3331084]
[1734847782894,0.00024901,96365.0,96364.0,0.3561084]
[1734847783965,0.00024901,96365.0,96364.0,0.4017084]
[1734847784599,0.00024901,96365.0,96364.0,1.0380366]
[1734847784803,0.00024901,96365.0,96364.0,1.17026426]
[1734847785007,0.00024901,96365.0,96364.0,1.17126426]
[1734847785423,0.00024901,96365.0,96364.0,1.26346397]
[1734847785624,0.00024901,96365.0,96364.0,1.26446397]
[1734847785771,0.00024901,96365.0,96364.0,1.26346397]
[1734847786198,0.00024901,96365.0,96364.0,1.26546397]
[1734847786602,0.00024901,96365.0,96364.0,1.26346397]
[1734847786781,0.00024901,96365.0,96364.0,1.26746397]
[1734847787073,0.00024901,96365.0,96364.0,1.51754345]
[1734847787383,0.00024901,96365.0,96364.0,1.48431579]
[1734847787562,0.00024901,96365.0,96364.0,1.48631579]
[1734847787964,0.00024901,96365.0,96364.0,1.71608867]
[1734847788390,0.00024901,96365.0,96364.0,1.71508867]
[1734847788598,0.00024901,96365.0,96364.0,1.72208867]
[1734847789041,0.00024901,96365.0,96364.0,1.71208867]
[1734847789259,6.1e-07,96366.0,96365.0,0.2]
[1734847789425,6.1e-07,96366.0,96365.0,1.2181806]
[1734847789602,6.1e-07,96366.0,96365.0,1.2999806]
[1734847790207,0.0001,96389.0,96365.0,1.2999806]
[1734847790208,0.0001,96389.0,96381.0,0.526109]
[1734847790418,0.0001,96389.0,96381.0,0.7092174]
[1734847791257,0.0001,96389.0,96381.0,0.6092174]
[1734847791429,0.0001,96389.0,96381.0,0.5406174]
[1734847791649,0.0001,96389.0,96381.0,0.4588174]
[1734847793329,0.0001,96389.0,96381.0,0.46935551]
[1734847798668,0.0146249,96382.0,96381.0,0.46935551]
[1734847799365,0.0146249,96382.0,96381.0,0.49235551]
[1734847800558,0.0146249,96382.0,96381.0,0.46935551]
[1734847802702,0.0146249,96382.0,96381.0,0.49235551]
[1734847804213,0.0146249,96382.0,96381.0,1.02868371]
[1734847806480,0.0146249,96382.0,96381.0,1.00568371]
[1734847807269,0.0146249,96382.0,96381.0,0.46935551]
[1734847813303,0.0146249,96382.0,96381.0,1.00568371]
[1734847815271,0.0146249,96382.0,96381.0,1.03802935]
[1734847816248,0.0146249,96382.0,96381.0,0.50170115]
[1734847817379,0.0146249,96382.0,96381.0,0.35170115]
[1734847817593,0.0908249,96382.0,96381.0,0.31935551]
[1734847819594,0.0146249,96382.0,96381.0,0.31935551]
[1734847822479,0.0146249,96382.0,96381.0,0.11184651]
[1734847823699,0.0603249,96382.0,96381.0,0.11184651]
[1734847824091,0.1365249,96382.0,96381.0,0.01053811]
[1734847824288,0.1365249,96382.0,96372.0,0.207529]
[1734847824526,0.00129707,96381.0,96373.0,0.1013084]
[1734847825095,0.00129707,96381.0,96374.0,0.207524]
[1734847825320,0.00129707,96381.0,96376.0,0.20752]
[1734847825520,0.00129707,96381.0,96376.0,0.3088284]
[1734847826103,0.00229707,96381.0,96376.0,0.3088284]
[1734847826509,0.00129707,96381.0,96376.0,0.3088284]
[1734847826791,0.00329707,96381.0,96376.0,0.3088284]
[1734847827125,0.00129707,96381.0,96376.0,0.3088284]
[1734847827672,0.1365249,96382.0,96378.0,0.41503]
[1734847827673,0.0146249,96382.0,96378.0,0.41503]
[1734847827846,0.0146249,96382.0,96381.0,0.1013084]
[1734847828050,0.0146249,96382.0,96381.0,0.1798084]
[1734847828436,0.0146249,96382.0,96381.0,0.3298084]
[1734847829814,0.0156249,96382.0,96381.0,0.3298084]
[1734847830031,0.0146249,96382.0,96381.0,0.85863077]
[1734847830441,0.0156249,96382.0,96381.0,0.85863077]
[1734847831100,0.0156249,96382.0,96381.0,0.67313387]
[1734847832256,0.0146249,96382.0,96381.0,0.67313387]
[1734847832531,0.0156249,96382.0,96381.0,0.67313387]
[1734847833327,0.0146249,96382.0,96381.0,0.67313387]
[1734847833736,0.0156249,96382.0,96381.0,0.67313387]
[1734847833952,0.0146249,96382.0,96381.0,0.67313387]
[1734847834152,0.0146249,96382.0,96381.0,0.90490675]
[1734847835451,0.0156249,96382.0,96381.0,0.67313387]
[1734847835802,0.0146249,96382.0,96381.0,0.67313387]
[1734847836161,0.0156249,96382.0,96381.0,0.67313387]
[1734847836564,0.0146249,96382.0,96381.0,0.67313387]
[1734847836768,0.0156249,96382.0,96381.0,0.92790675]
[1734847837147,0.0156249,96382.0,96381.0,1.46423495]
[1734847837835,0.0156249,96382.0,96381.0,1.23246207]
[1734847838035,0.0156249,96382.0,96381.0,1.26471485]
[1734847838589,0.0146249,96382.0,96381.0,1.26471485]
[1734847839005,0.0146249,96382.0,96381.0,1.26671485]
[1734847840314,0.0146249,96382.0,96381.0,1.26771485]
[1734847845683,0.0146249,96382.0,96381.0,1.18921485]
[1734847846630,0.0146249,96382.0,96381.0,1.26871485]
[1734847848368,0.0146249,96382.0,96381.0,1.23646207]
[1734847851058,0.0146249,96382.0,96381.0,1.13396207]
[1734847851487,0.0146249,96382.0,96381.0,1.13196207]
[1734847851692,0.0146249,96382.0,96381.0,1.13296207]
[1734847852035,0.0146249,96382.0,96381.0,1.13196207]
[1734847852299,0.0146249,96382.0,96381.0,1.13396207]
[1734847852440,0.0146249,96382.0,96381.0,1.13296207]
[1734847852646,0.0146249,96382.0,96381.0,1.13096207]
[1734847852849,0.0146249,96382.0,96381.0,1.13396207]
[1734847853496,0.0146249,96382.0,96381.0,1.13296207]
[1734847853897,0.0146249,96382.0,96381.0,1.27217004]
[1734847855130,0.0146249,96382.0,96381.0,1.27117004]
[1734847855397,0.0146249,96382.0,96381.0,0.92984457]
[1734847855620,0.0146249,96382.0,96381.0,0.92884457]
[1734847855830,0.0146249,96382.0,96381.0,0.92684457]
[1734847856012,0.0146249,96382.0,96381.0,0.92784457]
[1734847856766,0.0146249,96382.0,96381.0,0.92684457]
[1734847857549,0.0146249,96382.0,96381.0,0.77684457]
[1734847858032,0.0146249,96382.0,96381.0,0.6376366]
[1734847858218,0.0146249,96382.0,96381.0,0.1023084]
[1734847858419,0.0146249,96382.0,96381.0,0.1013084]
[1734847858881,0.0156249,96382.0,96381.0,0.1013084]
[1734847859021,0.0146249,96382.0,96381.0,0.1013084]
[1734847859425,0.0156249,96382.0,96381.0,0.1013084]
[1734847875732,0.01692185,96382.0,96381.0,0.1013084]
[1734847878229,0.207509,96381.0,96369.0,0.0001714]
[1734847878586,0.00129708,96380.0,96370.0,0.1013084]
[1734847880390,0.207514,96379.0,96370.0,0.1013084]
[1734847880510,0.00129712,96378.0,96370.0,0.1013084]
[1734847880710,0.1212,96371.0,96369.0,0.0011714]
[1734847880909,0.20883026,96370.0,96369.0,0.0001714]
[1734847881132,0.207533,96370.0,96369.0,0.0001714]
[1734847881957,0.22695278,96370.0,96369.0,0.0001714]
[1734847882377,0.22695278,96370.0,96369.0,0.0071714]
[1734847882778,0.22695278,96370.0,96369.0,0.0101714]
[1734847883611,0.01941978,96370.0,96369.0,0.0101714]
[1734847883826,0.02071706,96370.0,96369.0,0.0101714]
[1734847884039,0.02071706,96370.0,96369.0,0.0071714]
[1734847884462,0.02071706,96370.0,96369.0,0.0081714]
[1734847884685,0.02071706,96370.0,96369.0,0.0011714]
[1734847884933,0.02071706,96370.0,96369.0,0.0001714]
[1734847885117,0.01941978,96370.0,96369.0,0.0021714]
[1734847885246,0.01941978,96370.0,96369.0,0.0011714]
[1734847885647,0.01941978,96370.0,96369.0,0.0001714]
[1734847887833,0.02071702,96370.0,96369.0,0.0001714]
[1734847889090,0.00129724,96370.0,96369.0,0.0001714]
[1734847889230,0.07739724,96370.0,96369.0,0.0001714]
[1734847889431,0.14191702,96370.0,96369.0,0.0001714]
[1734847891675,0.14191714,96370.0,96369.0,0.0001714]
[1734847892096,0.24191714,96370.0,96369.0,0.0001714]
[1734847892297,0.24061978,96370.0,96369.0,0.0001714]
[1734847894245,0.24261978,96370.0,96369.0,0.0001714]
[1734847894442,0.24161978,96370.0,96369.0,0.0001714]
[1734847894649,0.24061978,96370.0,96369.0,0.0001714]
[1734847894854,0.24461978,96370.0,96369.0,0.0001714]
[1734847895351,0.24561978,96370.0,96369.0,0.0001714]
[1734847895521,0.24161978,96370.0,96369.0,0.0001714]
[1734847895697,0.24561978,96370.0,96369.0,0.0011714]
[1734847896204,0.2222,96370.0,96369.0,0.0001714]
[1734847897542,0.1222,96370.0,96369.0,0.0001714]
[1734847897706,0.001,96370.0,96369.0,0.0001714]
[1734847897909,0.005,96370.0,96369.0,0.1014798]
[1734847898543,0.004,96370.0,96369.0,0.1014798]
[1734847898739,0.0146249,96382.0,96380.0,0.207511]
[1734847898938,0.0146249,96382.0,96380.0,0.3088194]
[1734847900314,0.0146249,96382.0,96381.0,0.1013084]
[1734847901367,0.0156249,96382.0,96381.0,0.1013084]
[1734847902127,0.0146249,96382.0,96381.0,0.1033084]
[1734847902334,0.0146249,96382.0,96381.0,0.1043084]
[1734847903482,0.0146249,96382.0,96381.0,0.1033084]
[1734847905190,0.0146249,96382.0,96381.0,0.1013084]
[1734847907155,0.0156249,96382.0,96381.0,0.1013084]
[1734847907356,0.0166249,96382.0,96381.0,0.1013084]
[1734847908644,0.207453,96408.0,96400.0,0.40801842]
[1734847908976,0.07904459,96403.0,96400.0,0.40801842]
[1734847909628,0.207464,96402.0,96400.0,0.40801842]
[1734847910848,0.0012969,96401.0,96400.0,0.40801842]
[1734847912549,0.0032969,96401.0,96400.0,0.40801842]
[1734847913494,0.0032569,96401.0,96400.0,0.40801842]
[1734847915721,0.1045653,96401.0,96400.0,0.40801842]
[1734847915998,0.3312653,96401.0,96400.0,0.40801842]
[1734847916210,0.4800084,96401.0,96400.0,0.40801842]
[1734847916557,0.1,96390.0,96358.0,0.1258]
[1734847916768,0.207533,96370.0,96352.0,0.09286859]
[1734847916979,0.207533,96370.0,96351.0,0.09286859]
[1734847918500,0.207533,96370.0,96350.0,0.0001712]
[1734847918697,0.207533,96370.0,96369.0,0.0011714]
[1734847919253,0.207533,96370.0,96369.0,0.0001714]
[1734847919381,0.215533,96370.0,96369.0,0.0011714]
[1734847920611,0.219533,96370.0,96369.0,0.0011714]
[1734847920809,0.219533,96370.0,96369.0,0.0001714]
[1734847921014,0.207533,96370.0,96369.0,0.0001714]
[1734847921213,0.007,96370.0,96369.0,0.0011714]
[1734847921410,0.01,96370.0,96369.0,0.0011714]
[1734847921637,0.003,96370.0,96369.0,0.1014798]
[1734847921819,0.009,96370.0,96369.0,0.1014798]
[1734847922165,0.003,96370.0,96369.0,0.1014798]
[1734847922579,0.005,96370.0,96369.0,0.1014798]
[1734847922782,0.00126262,96386.0,96370.0,0.207533]
[1734847922987,0.00126262,96385.0,96376.0,0.207519]
[1734847923337,0.00126262,96385.0,96382.0,0.207507]
[1734847923570,0.00126262,96393.0,96382.0,0.207507]
[1734847923909,0.00126262,96392.0,96382.0,0.207507]
[1734847924753,0.00126262,96393.0,96382.0,0.207507]
[1734847924950,0.00126262,96392.0,96382.0,0.207507]
[1734847925632,0.00126262,96392.0,96388.0,0.207492]
[1734847925924,0.00054459,96394.0,96384.0,0.207501]
[1734847926268,0.00126262,96393.0,96371.0,0.1013084]
[1734847927624,0.00126262,96393.0,96381.0,0.207508]
[1734847927836,0.00326262,96393.0,96381.0,0.207508]
[1734847928607,0.00826262,96393.0,96381.0,0.207508]
[1734847929181,0.00826262,96393.0,96372.0,0.207529]
[1734847929182,0.00626262,96393.0,96382.0,0.207507]
[1734847929722,0.00626262,96393.0,96388.0,0.207494]
[1734847930529,0.00126262,96393.0,96388.0,0.207494]
[1734847930683,0.00054459,96394.0,96388.0,0.207494]
[1734847932179,0.00154459,96394.0,96388.0,0.207494]
[1734847932382,0.00126262,96393.0,96382.0,0.207507]
[1734847932550,0.00126262,96393.0,96388.0,0.207494]
[1734847933751,0.00054459,96394.0,96388.0,0.207494]
[1734847934196,0.00054459,96394.0,96382.0,0.207506]
[1734847935023,0.00154459,96394.0,96382.0,0.207506]
[1734847935227,0.00126262,96393.0,96382.0,0.207506]
[1734847935842,0.00126262,96393.0,96382.0,0.415013]
[1734847936731,0.00326262,96393.0,96382.0,0.415013]
[1734847937828,0.00826262,96393.0,96382.0,0.207506]
[1734847938053,0.00826262,96393.0,96376.0,0.0791]
[1734847938229,0.414972,96392.0,96376.0,0.1013084]
[1734847938429,0.00126262,96391.0,96376.0,0.1013084]
[1734847938638,0.00126262,96391.0,96377.0,0.207518]
[1734847940307,0.00126262,96393.0,96377.0,0.207518]
[1734847940511,0.00126262,96392.0,96377.0,0.207518]
[1734847941136,0.00126262,96392.0,96383.0,0.207505]
[1734847941487,0.00054459,96394.0,96383.0,0.207505]
[1734847941488,0.00526262,96393.0,96383.0,0.207505]
[1734847941686,0.00126262,96392.0,96383.0,0.207505]
[1734847942234,0.075,96391.0,96383.0,0.207505]
[1734847942438,0.00126262,96390.0,96383.0,0.207505]
[1734847943405,0.00126262,96391.0,96383.0,0.207505]
[1734847943735,0.00126262,96390.0,96383.0,0.207505]
[1734847944516,0.003,96390.0,96383.0,0.207505]
[1734847944743,0.00126262,96389.0,96383.0,0.207505]
[1734847946674,0.00126262,96393.0,96383.0,0.207505]
[1734847946913,0.002,96389.0,96383.0,0.207505]
[1734847947115,0.00126262,96388.0,96383.0,0.207505]
[1734847947270,0.00126262,96388.0,96384.0,0.0796]
[1734847947464,0.00126262,96388.0,96385.0,0.207501]
[1734847947894,0.003,96393.0,96385.0,0.207501]
[1734847948154,0.00126262,96392.0,96385.0,0.207501]
[1734847949149,0.00226262,96393.0,96385.0,0.207501]
[1734847949389,0.00126262,96392.0,96385.0,0.207501]
[1734847950463,0.00126262,96393.0,96385.0,0.207501]
[1734847950601,0.00226262,96392.0,96385.0,0.207501]
[1734847950800,0.00426262,96392.0,96385.0,0.207501]
[1734847951002,0.00426262,96392.0,96384.0,0.0796]
[1734847952035,0.00226262,96392.0,96384.0,0.0796]
[1734847952231,0.00126262,96392.0,96384.0,0.0796]
[1734847952434,0.00054459,96394.0,96384.0,0.0796]
[1734847952639,0.001,96393.0,96386.0,0.207497]
[1734847952837,0.00126262,96392.0,96386.0,0.207497]
[1734847953521,0.00426262,96392.0,96386.0,0.207497]
[1734847953697,0.00426262,96392.0,96386.0,0.414995]
[1734847953901,0.00126262,96392.0,96386.0,0.414995]
[1734847954099,0.00054459,96394.0,96386.0,0.414995]
[1734847954323,0.00054459,96394.0,96391.0,0.207486]
[1734847966094,0.00054459,96394.0,96386.0,0.42555224]
[1734847966234,0.00054459,96394.0,96385.0,0.0001712]
[1734847966438,0.00126262,96393.0,96385.0,0.0001712]
[1734847968457,0.207494,96389.0,96385.0,0.0001712]
[1734847968658,0.0779,96386.0,96385.0,0.0001712]
[1734847968862,0.07916262,96386.0,96385.0,0.0001712]
[1734847969632,0.10017198,96386.0,96385.0,0.0001712]
[1734847970346,0.27438038,96386.0,96385.0,0.0001712]
[1734847970579,0.4008,96370.0,96369.0,1e-06]
[1734847970792,0.4008,96370.0,96355.0,0.09286859]
[1734847970793,0.457563,96356.0,96355.0,0.09286859]
[1734847971004,0.6367714,96356.0,96355.0,0.09286859]
[1734847971211,0.6367714,96356.0,96353.0,0.09286859]
[1734847971212,0.1,96354.0,96353.0,0.09286859]
[1734847971414,0.35257102,96354.0,96353.0,0.09286859]
[1734847971619,0.3513084,96354.0,96353.0,0.09286859]
[1734847972294,0.3513084,96354.0,96353.0,0.093032]
[1734847972690,0.37751095,96354.0,96353.0,0.093032]
[1734847972911,0.72358813,96354.0,96353.0,0.00016341]
[1734847973109,0.72358813,96354.0,96353.0,0.00033461]
[1734847973310,0.73258813,96354.0,96353.0,0.00133461]
[1734847973531,0.72158813,96354.0,96353.0,0.00033461]
[1734847973774,0.72358813,96354.0,96353.0,0.00033461]
[1734847973943,0.73258813,96354.0,96353.0,0.00133461]
[1734847974119,0.1,96351.0,96350.0,0.00010368]
[1734847974340,0.35257102,96351.0,96350.0,0.00010368]
[1734847974578,0.3513084,96351.0,96350.0,0.00010368]
[1734847976555,0.3533084,96351.0,96350.0,0.00010368]
[1734847976909,0.3623084,96351.0,96350.0,0.00110368]
[1734847977126,0.3603084,96351.0,96350.0,0.00110368]
[1734847977504,0.3533084,96351.0,96350.0,0.00010368]
[1734847977950,0.011,96351.0,96350.0,0.00110368]
[1734847978159,0.11226262,96351.0,96350.0,0.00110368]
[1734847978813,0.01026262,96351.0,96350.0,0.00110368]
[1734847978964,0.01226262,96351.0,96350.0,0.00110368]
[1734847979173,0.11226262,96351.0,96350.0,0.00110368]
[1734847979549,0.10126262,96351.0,96350.0,0.00010368]
[1734847979774,0.10326262,96351.0,96350.0,0.00010368]
[1734847979982,0.11226262,96351.0,96350.0,0.00110368]
[1734847980135,0.11226262,96351.0,96350.0,0.00010368]
[1734847980541,0.11926262,96351.0,96350.0,0.00110368]
[1734847980771,0.10326262,96351.0,96350.0,0.00010368]
[1734847981321,0.11026262,96351.0,96350.0,0.00110368]
[1734847981710,0.21157102,96351.0,96350.0,0.00110368]
[1734847981908,0.107,96351.0,96350.0,0.00110368]
[1734847982089,0.11026262,96351.0,96350.0,0.00110368]
[1734847982495,0.01026262,96351.0,96350.0,0.00110368]
[1734847982651,0.00326262,96351.0,96350.0,0.00010368]
[1734847982857,0.21683662,96351.0,96350.0,0.00110368]
[1734847983056,0.215574,96351.0,96350.0,0.00110368]
[1734847983264,0.209574,96351.0,96350.0,0.00010368]
[1734847983513,0.214574,96351.0,96350.0,0.00110368]
[1734847983687,0.216574,96351.0,96350.0,0.00110368]
[1734847983892,0.209574,96351.0,96350.0,0.00010368]
[1734847984114,0.215574,96351.0,96350.0,0.00010368]
[1734847984521,0.209574,96351.0,96350.0,0.00010368]
[1734847984967,0.2096597,96351.0,96350.0,0.00010368]
[1734847985204,0.2076597,96351.0,96350.0,0.00010368]
[1734847985404,0.2096597,96351.0,96350.0,0.00010368]
[1734847985962,0.2076597,96351.0,96350.0,0.00010368]
[1734847986188,0.2146597,96351.0,96350.0,0.00010368]
[1734847986585,0.0070857,96351.0,96350.0,0.00010368]
[1734847986790,0.0050857,96351.0,96350.0,0.00010368]
[1734847986997,0.0020857,96351.0,96350.0,0.00010368]
[1734847987542,0.0070857,96351.0,96350.0,0.00010368]
[1734847987760,0.0020857,96351.0,96350.0,0.00010368]
[1734847988274,0.0040857,96351.0,96350.0,0.00010368]
[1734847988624,0.0060857,96351.0,96350.0,0.00010368]
[1734847988968,0.0040857,96351.0,96350.0,0.00010368]
[1734847989257,0.0060857,96351.0,96350.0,0.00010368]
[1734847989681,0.0020857,96351.0,96350.0,0.00010368]
[1734847990080,0.0050857,96351.0,96350.0,0.00010368]
[1734847991122,0.0020857,96351.0,96350.0,0.00010368]
[1734847991323,8.57e-05,96351.0,96350.0,0.00010368]
[1734847991523,0.0030857,96351.0,96350.0,0.00010368]
[1734847992040,0.0020857,96351.0,96350.0,0.00010368]
[1734847992438,0.0030857,96351.0,96350.0,0.00010368]
[1734847993049,0.2106597,96351.0,96350.0,0.00010368]
[1734847994123,0.0030857,96351.0,96350.0,0.00010368]
[1734847994636,0.00434832,96351.0,96350.0,0.00010368]
[1734847998047,0.00334832,96351.0,96350.0,0.00010368]
[1734847998248,0.00434832,96351.0,96350.0,0.00010368]
[1734847998823,0.00334832,96351.0,96350.0,0.00010368]
[1734847999027,0.00434832,96351.0,96350.0,0.00010368]
[1734847999449,0.00234832,96351.0,96350.0,0.00010368]
[1734847999653,0.00434832,96351.0,96350.0,0.00010368]
[1734848000032,0.00234832,96351.0,96350.0,0.00010368]
[1734848000417,0.00434832,96351.0,96350.0,0.00010368]
[1734848003182,0.10565672,96351.0,96350.0,0.00010368]
[1734848003383,0.43535672,96351.0,96350.0,0.00010368]
[1734848003598,0.4810941,96351.0,96350.0,0.00010368]
[1734848005092,0.1,96347.0,96323.0,0.0781]
[1734848005349,0.20761,96335.0,96323.0,0.0781]
[1734848005513,0.00126262,96334.0,96323.0,0.0781]
[1734848007203,0.00126262,96334.0,96333.0,0.0061712]
[1734848007457,0.00126262,96334.0,96333.0,0.0001712]
[1734848007630,0.00126262,96345.0,96333.0,0.0001712]
[1734848007831,0.001,96334.0,96333.0,0.0021712]
[1734848007986,0.00126262,96344.0,96333.0,0.0021712]
[1734848008388,0.00126262,96344.0,96334.0,0.0781]
[1734848008804,0.20884762,96346.0,96334.0,0.0781]
[1734848009006,0.00126262,96345.0,96334.0,0.0781]
[1734848010580,0.00426262,96345.0,96334.0,0.0781]
[1734848010792,0.00426262,96345.0,96335.0,0.207608]
[1734848010960,0.00426262,96345.0,96336.0,0.0459]
[1734848012261,0.00626262,96345.0,96336.0,0.0459]
[1734848012663,0.00126262,96345.0,96337.0,0.207604]
[1734848012861,0.003,96345.0,96336.0,0.0459]
[1734848013092,0.00126262,96344.0,96336.0,0.0459]
[1734848013569,0.003,96345.0,96336.0,0.0459]
[1734848013766,0.00126262,96344.0,96336.0,0.0459]
[1734848014290,0.00134832,96351.0,96336.0,0.0459]
[1734848014472,0.001,96345.0,96336.0,0.0459]
[1734848014671,0.001,96345.0,96339.0,0.2076]
[1734848014672,0.003,96345.0,96339.0,0.2076]
[1734848014890,0.00126262,96344.0,96339.0,0.2076]
[1734848015902,0.001,96344.0,96339.0,0.2076]
[1734848016553,0.00126262,96347.0,96339.0,0.2076]
[1734848016761,0.00126262,96346.0,96339.0,0.2076]
[1734848017037,0.001,96344.0,96339.0,0.2076]
[1734848017219,0.00126262,96343.0,96339.0,0.2076]
[1734848018067,0.00126262,96349.0,96339.0,0.2076]
[1734848018232,0.001,96346.0,96339.0,0.2076]
[1734848018390,0.00126262,96345.0,96339.0,0.2076]
[1734848019146,0.001,96343.0,96339.0,0.2076]
[1734848019351,0.00126262,96342.0,96339.0,0.2076]
[1734848020512,0.001,96343.0,96339.0,0.2076]
[1734848020949,0.00126262,96349.0,96339.0,0.2076]
[1734848021347,0.001,96345.0,96339.0,0.2076]
[1734848021938,0.00126262,96349.0,96339.0,0.2076]
[1734848022115,0.00326262,96349.0,96339.0,0.2076]
[1734848022760,0.00126262,96349.0,96339.0,0.2076]
[1734848022958,0.001,96345.0,96339.0,0.2076]
[1734848023354,0.00126262,96344.0,96339.0,0.2076]
[1734848023833,0.001,96345.0,96339.0,0.4152]
[1734848023981,0.00126262,96344.0,96339.0,0.4152]
[1734848024365,0.001,96345.0,96339.0,0.4152]
[1734848024764,0.00126262,96349.0,96339.0,0.4152]
[1734848025167,0.00326262,96349.0,96339.0,0.4152]
[1734848025471,0.001,96345.0,96339.0,0.4152]
[1734848025894,0.00326262,96349.0,96339.0,0.4152]
[1734848026210,0.00426262,96349.0,96339.0,0.4152]
[1734848026367,0.00126262,96349.0,96339.0,0.4152]
[1734848026570,0.001,96345.0,96339.0,0.4152]
[1734848026771,0.002,96345.0,96339.0,0.4152]
[1734848026970,0.00126262,96344.0,96339.0,0.4152]
[1734848027711,0.001,96345.0,96339.0,0.4152]
[1734848027916,0.00126262,96348.0,96339.0,0.4152]
[1734848028078,0.00126262,96344.0,96339.0,0.4152]
[1734848028278,0.00126262,96348.0,96339.0,0.4152]
[1734848028593,0.00126262,96347.0,96339.0,0.2076]
[1734848029016,0.001,96345.0,96339.0,0.2076]
[1734848029223,0.00126262,96344.0,96339.0,0.2076]
[1734848029622,0.002,96348.0,96339.0,0.2076]
[1734848029819,0.00126262,96347.0,96339.0,0.2076]
[1734848030038,0.00226262,96347.0,96339.0,0.2076]
[1734848031408,0.00126262,96347.0,96339.0,0.2076]
[1734848031620,0.001,96348.0,96339.0,0.2077714]
[1734848031749,0.00126262,96347.0,96339.0,0.2077714]
[1734848031959,0.00126262,96347.0,96345.0,0.207587]
[1734848032186,0.002,96348.0,96345.0,0.207587]
[1734848032379,0.001,96347.0,96345.0,0.207587]
[1734848033044,0.00126262,96349.0,96345.0,0.207587]